[Event "*** Titled Tuesday Blitz"]
[Site "Chess.com"]
[Date "2019.08.06"]
[Round "5"]
[White "gemarin"]
[Black "Mr_Penings"]
[Result "0-1"]
[WhiteElo "2077"]
[BlackElo "2514"]
[TimeControl "180+2"]
[EndTime "14:03:58 PDT"]
[Termination "Mr_Penings won on time"]

1. d4 {[%clk 0:03:01.9]} 1... Nf6 {[%clk 0:02:59]} 2. c4 {[%clk 0:03:01.9]} 2...
d6 {[%clk 0:03:00]} 3. Nc3 {[%clk 0:03:01.3]} 3... e5 {[%clk 0:03:01]} 4. Nf3
{[%clk 0:02:59.9]} 4... Nbd7 {[%clk 0:03:01.9]} 5. Qc2 {[%clk 0:02:59.1]} 5...
g6 {[%clk 0:03:02.5]} 6. g3 {[%clk 0:02:59]} 6... Bg7 {[%clk 0:03:03.6]} 7. Bg2
{[%clk 0:03:00.2]} 7... O-O {[%clk 0:03:04.8]} 8. O-O {[%clk 0:03:01.2]} 8...
Qe7 {[%clk 0:03:04.6]} 9. e3 {[%clk 0:02:51.1]} 9... Re8 {[%clk 0:03:02]} 10. b3
{[%clk 0:02:46.5]} 10... a6 {[%clk 0:02:54.5]} 11. Ba3 {[%clk 0:02:46.3]} 11...
Rb8 {[%clk 0:02:49.8]} 12. Rad1 {[%clk 0:02:25.4]} 12... b5 {[%clk 0:02:45.3]}
13. dxe5 {[%clk 0:02:25.4]} 13... Nxe5 {[%clk 0:02:42.6]} 14. Nxe5 {[%clk
0:02:24.4]} 14... Qxe5 {[%clk 0:02:44.5]} 15. cxb5 {[%clk 0:02:18.5]} 15... axb5
{[%clk 0:02:42.2]} 16. Bb2 {[%clk 0:02:11.3]} 16... Bf5 {[%clk 0:02:38.6]} 17.
Qc1 {[%clk 0:02:06.9]} 17... Qc5 {[%clk 0:02:18.1]} 18. Qd2 {[%clk 0:00:58.2]}
18... b4 {[%clk 0:01:49.4]} 19. Na4 {[%clk 0:00:56]} 19... Qa5 {[%clk
0:01:45.3]} 20. Rc1 {[%clk 0:00:31.6]} 20... Be4 {[%clk 0:01:44.3]} 21. Bxf6
{[%clk 0:00:16.9]} 21... Bxf6 {[%clk 0:01:44.6]} 22. Bxe4 {[%clk 0:00:11.8]}
22... Rxe4 {[%clk 0:01:46.5]} 23. Qc2 {[%clk 0:00:12.1]} 23... Re7 {[%clk
0:01:45.9]} 24. Qc6 {[%clk 0:00:12.9]} 24... Qf5 {[%clk 0:01:40.3]} 25. Rc4
{[%clk 0:00:12.9]} 25... h5 {[%clk 0:01:39.7]} 26. Rfc1 {[%clk 0:00:12.9]} 26...
h4 {[%clk 0:01:39.9]} 27. Qg2 {[%clk 0:00:12.8]} 27... hxg3 {[%clk 0:01:38]} 28.
hxg3 {[%clk 0:00:13]} 28... c5 {[%clk 0:01:39.1]} 29. R4c2 {[%clk 0:00:11.2]}
29... Kg7 {[%clk 0:01:38.9]} 30. Nb2 {[%clk 0:00:11.4]} 30... Rh8 {[%clk
0:01:33.1]} 31. Nc4 {[%clk 0:00:11.5]} 31... Qe6 {[%clk 0:01:14.5]} 32. Rd1
{[%clk 0:00:10.9]} 32... Be5 {[%clk 0:00:57]} 33. Rcd2 {[%clk 0:00:11]} 33...
Rh5 {[%clk 0:00:50.1]} 34. f4 {[%clk 0:00:10.6]} 34... Bc3 {[%clk 0:00:45.8]}
35. Rxd6 {[%clk 0:00:10.8]} 35... Qg4 {[%clk 0:00:47]} 36. R6d3 {[%clk 0:00:06]}
36... Re8 {[%clk 0:00:47.5]} 37. Rd8 {[%clk 0:00:03.6]} 37... Reh8 {[%clk
0:00:43.8]} 38. Rxh8 {[%clk 0:00:03.5]} 38... Qxd1+ {[%clk 0:00:45]} 0-1

[Event "*** Titled Tuesday Blitz"]
[Site "Chess.com"]
[Date "2019.08.06"]
[Round "5"]
[White "Me_ch_an"]
[Black "jposthuma"]
[Result "1-0"]
[WhiteElo "2339"]
[BlackElo "2418"]
[TimeControl "180+2"]
[EndTime "14:03:59 PDT"]
[Termination "Me_ch_an won by checkmate"]

1. e4 {[%clk 0:03:01.8]} 1... c6 {[%clk 0:02:59.4]} 2. d4 {[%clk 0:03:02.5]}
2... d5 {[%clk 0:03:01.3]} 3. Nd2 {[%clk 0:03:03.8]} 3... dxe4 {[%clk
0:03:01.1]} 4. Nxe4 {[%clk 0:03:05.7]} 4... Nf6 {[%clk 0:03:02.4]} 5. Nxf6+
{[%clk 0:03:06.4]} 5... gxf6 {[%clk 0:03:04.3]} 6. c3 {[%clk 0:03:07.6]} 6...
Qd5 {[%clk 0:03:05]} 7. Nf3 {[%clk 0:03:06.6]} 7... Rg8 {[%clk 0:03:05.1]} 8. c4
{[%clk 0:02:51.7]} 8... Qe4+ {[%clk 0:03:00.1]} 9. Be3 {[%clk 0:02:44.4]} 9...
e5 {[%clk 0:02:59.5]} 10. Bd3 {[%clk 0:02:31.1]} 10... Bb4+ {[%clk 0:02:53.6]}
11. Ke2 {[%clk 0:02:02.5]} 11... Qg4 {[%clk 0:02:42.3]} 12. h3 {[%clk
0:02:02.6]} 12... Qe6 {[%clk 0:02:22.1]} 13. Bxh7 {[%clk 0:01:34.6]} 13... Rxg2
{[%clk 0:01:54.3]} 14. d5 {[%clk 0:01:31.5]} 14... cxd5 {[%clk 0:01:46.6]} 15.
cxd5 {[%clk 0:01:33.4]} 15... Qd6 {[%clk 0:01:30.7]} 16. Rc1 {[%clk 0:01:20.9]}
16... Bd7 {[%clk 0:01:19.5]} 17. Nh4 {[%clk 0:01:21.7]} 17... Rg7 {[%clk
0:01:06.8]} 18. Bf5 {[%clk 0:01:22.2]} 18... Qa6+ {[%clk 0:00:56.5]} 19. Kf3
{[%clk 0:01:13.6]} 19... Qxa2 {[%clk 0:00:21.5]} 20. Qc2 {[%clk 0:01:09.6]}
20... Na6 {[%clk 0:00:11.6]} 21. Rhd1 {[%clk 0:00:46.3]} 21... Qa5 {[%clk
0:00:07.2]} 22. Bxd7+ {[%clk 0:00:25.9]} 22... Kxd7 {[%clk 0:00:09.1]} 23. Qf5+
{[%clk 0:00:26.4]} 23... Ke8 {[%clk 0:00:08.9]} 24. Qxf6 {[%clk 0:00:24.9]}
24... Rh7 {[%clk 0:00:07.4]} 25. Qxe5+ {[%clk 0:00:20.6]} 25... Kf8 {[%clk
0:00:07.8]} 26. Bg5 {[%clk 0:00:15]} 26... Re8 {[%clk 0:00:05]} 27. Qf5 {[%clk
0:00:15]} 27... Rh8 {[%clk 0:00:03.6]} 28. Ng6+ {[%clk 0:00:15.9]} 28... Kg7
{[%clk 0:00:04.1]} 29. Bf6+ {[%clk 0:00:17.1]} 29... Kh7 {[%clk 0:00:04.1]} 30.
Nf8+ {[%clk 0:00:15.6]} 30... Kg8 {[%clk 0:00:03.9]} 31. Qg5+ {[%clk 0:00:16.4]}
31... Kxf8 {[%clk 0:00:05.2]} 32. Qg7# {[%clk 0:00:17.5]} 1-0

[Event "*** Titled Tuesday Blitz"]
[Site "Chess.com"]
[Date "2019.08.06"]
[Round "5"]
[White "NemtsevIgor"]
[Black "MFguimaraes"]
[Result "1/2-1/2"]
[WhiteElo "2320"]
[BlackElo "2273"]
[TimeControl "180+2"]
[EndTime "14:04:00 PDT"]
[Termination "Game drawn by repetition"]

1. d3 {[%clk 0:03:01.9]} 1... d5 {[%clk 0:02:59.6]} 2. g3 {[%clk 0:03:02.9]}
2... e5 {[%clk 0:02:59.6]} 3. Nf3 {[%clk 0:03:03.8]} 3... Nc6 {[%clk 0:03:00.2]}
4. Bg2 {[%clk 0:03:04.5]} 4... Nf6 {[%clk 0:03:01.5]} 5. O-O {[%clk 0:03:05.3]}
5... Be7 {[%clk 0:03:01.2]} 6. c4 {[%clk 0:03:05.8]} 6... O-O {[%clk 0:03:01.1]}
7. cxd5 {[%clk 0:03:06.4]} 7... Nxd5 {[%clk 0:03:02.4]} 8. Nc3 {[%clk
0:03:07.2]} 8... Nb6 {[%clk 0:03:03.3]} 9. Be3 {[%clk 0:03:05.2]} 9... Be6
{[%clk 0:03:03.2]} 10. Na4 {[%clk 0:03:04.4]} 10... Re8 {[%clk 0:03:01.1]} 11.
a3 {[%clk 0:03:04.3]} 11... Qd7 {[%clk 0:02:56.7]} 12. Rc1 {[%clk 0:03:01.9]}
12... Nxa4 {[%clk 0:02:54.6]} 13. Qxa4 {[%clk 0:03:02.1]} 13... Nd4 {[%clk
0:02:54.7]} 14. Qxd7 {[%clk 0:02:27.4]} 14... Nxe2+ {[%clk 0:02:54.8]} 15. Kh1
{[%clk 0:02:28.6]} 15... Bxd7 {[%clk 0:02:55.1]} 16. Rce1 {[%clk 0:02:29.8]}
16... Nd4 {[%clk 0:02:50.9]} 17. Nxe5 {[%clk 0:02:30.4]} 17... Nc2 {[%clk
0:02:43.9]} 18. Rc1 {[%clk 0:02:05.5]} 18... Nxe3 {[%clk 0:02:43.2]} 19. fxe3
{[%clk 0:02:06.5]} 19... Bc8 {[%clk 0:02:35.3]} 20. Nxf7 {[%clk 0:01:53]} 20...
c6 {[%clk 0:02:27.2]} 21. Ne5 {[%clk 0:01:43.3]} 21... Bg5 {[%clk 0:02:25.4]}
22. Nc4 {[%clk 0:01:41.3]} 22... Be6 {[%clk 0:02:24.5]} 23. Nd6 {[%clk
0:01:29.1]} 23... Re7 {[%clk 0:02:21.3]} 24. Nxb7 {[%clk 0:01:22.9]} 24... Bxe3
{[%clk 0:02:16.7]} 25. Rxc6 {[%clk 0:01:20.1]} 25... Bd7 {[%clk 0:01:58]} 26.
Rc7 {[%clk 0:01:00]} 26... Bb6 {[%clk 0:01:57.8]} 27. Rc4 {[%clk 0:00:55.4]}
27... Bb5 {[%clk 0:01:49.7]} 28. Nd6 {[%clk 0:00:55.8]} 28... Bxc4 {[%clk
0:01:48.8]} 29. Bxa8 {[%clk 0:00:56.8]} 29... Be6 {[%clk 0:01:43.9]} 30. Re1
{[%clk 0:00:52.6]} 30... Kf8 {[%clk 0:01:41.6]} 31. Bf3 {[%clk 0:00:47.6]} 31...
Bd5 {[%clk 0:01:31]} 32. Rf1 {[%clk 0:00:45]} 32... Re1 {[%clk 0:01:29.7]} 33.
Bxd5+ {[%clk 0:00:30.8]} 33... Rxf1+ {[%clk 0:01:30.3]} 34. Kg2 {[%clk
0:00:32.7]} 34... Rf2+ {[%clk 0:01:31.4]} 35. Kh3 {[%clk 0:00:32.9]} 35... Rxb2
{[%clk 0:01:32.9]} 36. Nc4 {[%clk 0:00:33.6]} 36... Rf2 {[%clk 0:01:26.1]} 37.
Nxb6 {[%clk 0:00:31]} 37... axb6 {[%clk 0:01:27.3]} 38. a4 {[%clk 0:00:32.4]}
38... Ke7 {[%clk 0:01:27.8]} 39. Bc4 {[%clk 0:00:33.5]} 39... Kd6 {[%clk
0:01:28.5]} 40. Bb5 {[%clk 0:00:34.7]} 40... Kc5 {[%clk 0:01:29.1]} 41. g4
{[%clk 0:00:36.2]} 41... g5 {[%clk 0:01:29.5]} 42. Kg3 {[%clk 0:00:37.5]} 42...
Rb2 {[%clk 0:01:20.6]} 43. h4 {[%clk 0:00:37.3]} 43... h6 {[%clk 0:01:17.9]} 44.
hxg5 {[%clk 0:00:38.4]} 44... hxg5 {[%clk 0:01:19.2]} 45. Kf3 {[%clk 0:00:39.5]}
45... Rxb5 {[%clk 0:01:10.7]} 46. axb5 {[%clk 0:00:40.1]} 46... Kxb5 {[%clk
0:01:12.2]} 47. Ke4 {[%clk 0:00:41.8]} 47... Kc5 {[%clk 0:01:12.9]} 48. Ke5
{[%clk 0:00:42.8]} 48... Kc6 {[%clk 0:01:14]} 49. Ke6 {[%clk 0:00:42.1]} 49...
Kc5 {[%clk 0:01:02.5]} 50. Ke5 {[%clk 0:00:42.3]} 50... Kc6 {[%clk 0:01:01.7]}
51. Ke6 {[%clk 0:00:43.5]} 51... Kc5 {[%clk 0:01:02.1]} 52. Ke5 {[%clk
0:00:44.7]} 1/2-1/2

[Event "*** Titled Tuesday Blitz"]
[Site "Chess.com"]
[Date "2019.08.06"]
[Round "5"]
[White "BlackBoarder"]
[Black "Aknok"]
[Result "1-0"]
[WhiteElo "2663"]
[BlackElo "2439"]
[TimeControl "180+2"]
[EndTime "14:04:01 PDT"]
[Termination "BlackBoarder won by resignation"]

1. e4 {[%clk 0:02:58.1]} 1... e6 {[%clk 0:03:00.3]} 2. d4 {[%clk 0:02:58.9]}
2... d5 {[%clk 0:03:01.9]} 3. Bd3 {[%clk 0:03:00.4]} 3... c5 {[%clk 0:03:01.9]}
4. exd5 {[%clk 0:03:01.4]} 4... exd5 {[%clk 0:03:02.3]} 5. Nf3 {[%clk
0:03:02.4]} 5... Nc6 {[%clk 0:03:01.9]} 6. O-O {[%clk 0:03:02.7]} 6... Bg4
{[%clk 0:03:00.9]} 7. Re1+ {[%clk 0:03:00.7]} 7... Be7 {[%clk 0:03:01.4]} 8.
dxc5 {[%clk 0:03:01.4]} 8... Nf6 {[%clk 0:02:59.4]} 9. h3 {[%clk 0:03:00.7]}
9... Bh5 {[%clk 0:02:59.4]} 10. Nc3 {[%clk 0:02:33.6]} 10... O-O {[%clk
0:02:57.7]} 11. Bg5 {[%clk 0:02:34.5]} 11... h6 {[%clk 0:02:47.2]} 12. Bxf6
{[%clk 0:02:11.4]} 12... Bxf6 {[%clk 0:02:49.1]} 13. Nxd5 {[%clk 0:02:09.1]}
13... Bxb2 {[%clk 0:02:30.6]} 14. Rb1 {[%clk 0:02:09.8]} 14... Ba3 {[%clk
0:02:17.2]} 15. Rxb7 {[%clk 0:01:54.3]} 15... Bxc5 {[%clk 0:02:00.1]} 16. Nf4
{[%clk 0:01:27.9]} 16... Bxf3 {[%clk 0:01:55]} 17. Qxf3 {[%clk 0:01:29.8]} 17...
Qd6 {[%clk 0:01:32.3]} 18. Qe4 {[%clk 0:00:49.2]} 18... g6 {[%clk 0:01:32.4]}
19. Nd5 {[%clk 0:00:17.3]} 19... Rae8 {[%clk 0:01:18.8]} 20. Qxe8 {[%clk
0:00:18.3]} 20... Rxe8 {[%clk 0:01:20.6]} 21. Rxe8+ {[%clk 0:00:19.9]} 21... Kg7
{[%clk 0:01:22.3]} 22. Ne7 {[%clk 0:00:13.5]} 22... Qf4 {[%clk 0:00:58.6]} 23.
Rg8+ {[%clk 0:00:09.2]} 23... Kh7 {[%clk 0:00:53.5]} 24. Bxg6+ {[%clk
0:00:08.6]} 24... fxg6 {[%clk 0:00:54.1]} 25. Nxg6+ {[%clk 0:00:04.9]} 25...
Kxg8 {[%clk 0:00:54.2]} 26. Nxf4 {[%clk 0:00:06]} 26... Nd4 {[%clk 0:00:53.4]}
27. Kf1 {[%clk 0:00:04.3]} 27... Bd6 {[%clk 0:00:45.8]} 28. c3 {[%clk
0:00:04.6]} 28... Nc6 {[%clk 0:00:43.5]} 29. Nd5 {[%clk 0:00:04.8]} 29... Bc5
{[%clk 0:00:41.6]} 30. Nf6+ {[%clk 0:00:05.5]} 30... Kf8 {[%clk 0:00:41.5]} 31.
Rc7 {[%clk 0:00:07]} 31... Ne5 {[%clk 0:00:40.3]} 32. Rxc5 {[%clk 0:00:07]}
32... Nd3 {[%clk 0:00:42.2]} 33. Rc7 {[%clk 0:00:07.3]} 33... h5 {[%clk
0:00:41.7]} 34. Rxa7 {[%clk 0:00:08.3]} 34... h4 {[%clk 0:00:42.4]} 35. a4
{[%clk 0:00:09.7]} 35... Nxf2 {[%clk 0:00:41.6]} 36. Nh7+ {[%clk 0:00:09.1]}
36... Kg8 {[%clk 0:00:42.2]} 37. Kxf2 {[%clk 0:00:11]} 37... Kh8 {[%clk
0:00:41.9]} 38. Kf3 {[%clk 0:00:10.9]} 38... Kg8 {[%clk 0:00:43]} 39. Kf4 {[%clk
0:00:11.3]} 1-0

[Event "*** Titled Tuesday Blitz"]
[Site "Chess.com"]
[Date "2019.08.06"]
[Round "5"]
[White "HrvojeZagreb"]
[Black "SergeiAza"]
[Result "1-0"]
[WhiteElo "2054"]
[BlackElo "2786"]
[TimeControl "180+2"]
[EndTime "14:04:01 PDT"]
[Termination "HrvojeZagreb won by resignation"]

1. d4 {[%clk 0:03:01.9]} 1... Nf6 {[%clk 0:02:59.4]} 2. Bf4 {[%clk 0:03:02.8]}
2... g6 {[%clk 0:02:55.8]} 3. Nc3 {[%clk 0:03:03.2]} 3... d5 {[%clk 0:02:56.9]}
4. e3 {[%clk 0:03:03.9]} 4... Bg7 {[%clk 0:02:57.1]} 5. h4 {[%clk 0:03:04.9]}
5... h5 {[%clk 0:02:56.8]} 6. Nf3 {[%clk 0:03:01.5]} 6... O-O {[%clk 0:02:57.3]}
7. Ne5 {[%clk 0:03:00.5]} 7... Nbd7 {[%clk 0:02:52.4]} 8. Be2 {[%clk 0:03:01.1]}
8... c6 {[%clk 0:02:52]} 9. f3 {[%clk 0:02:41.5]} 9... Nxe5 {[%clk 0:02:34.5]}
10. Bxe5 {[%clk 0:02:43.4]} 10... Qb6 {[%clk 0:02:35.3]} 11. Qd2 {[%clk
0:02:35]} 11... Qxb2 {[%clk 0:02:24.5]} 12. Rb1 {[%clk 0:02:35.3]} 12... Qa3
{[%clk 0:02:25.6]} 13. g4 {[%clk 0:02:20.9]} 13... Qa5 {[%clk 0:02:07.8]} 14.
gxh5 {[%clk 0:02:03.7]} 14... Nxh5 {[%clk 0:02:06.8]} 15. Bxg7 {[%clk
0:02:04.1]} 15... Kxg7 {[%clk 0:02:05.4]} 16. Rg1 {[%clk 0:02:01.6]} 16... Qc7
{[%clk 0:01:42.5]} 17. f4 {[%clk 0:01:59.4]} 17... Rh8 {[%clk 0:01:43.2]} 18.
Bxh5 {[%clk 0:01:39]} 18... Rxh5 {[%clk 0:01:42.8]} 19. Qf2 {[%clk 0:01:37.4]}
19... Be6 {[%clk 0:01:25.6]} 20. Ne2 {[%clk 0:01:29.8]} 20... Rah8 {[%clk
0:01:11.3]} 21. Ng3 {[%clk 0:01:07.7]} 21... Rxh4 {[%clk 0:01:11.7]} 22. f5
{[%clk 0:01:08.6]} 22... Bc8 {[%clk 0:01:12.8]} 23. fxg6 {[%clk 0:00:59.5]}
23... fxg6 {[%clk 0:01:13.3]} 24. Nf5+ {[%clk 0:00:58]} 24... Bxf5 {[%clk
0:01:13.8]} 25. Qxf5 {[%clk 0:00:59.9]} 25... R8h6 {[%clk 0:01:09.9]} 26. Kd2
{[%clk 0:00:33.3]} 26... Rh2+ {[%clk 0:00:58]} 27. Kd3 {[%clk 0:00:32.2]} 27...
R2h5 {[%clk 0:00:24.8]} 28. Rxg6+ {[%clk 0:00:28]} 28... Rxg6 {[%clk 0:00:25.6]}
29. Qxh5 {[%clk 0:00:29.1]} 29... Qd6 {[%clk 0:00:14.5]} 30. Rh1 {[%clk
0:00:27.4]} 30... Qf6 {[%clk 0:00:11.5]} 31. Qh7+ {[%clk 0:00:15.1]} 31... Kf8
{[%clk 0:00:12.5]} 32. Qh3 {[%clk 0:00:15.4]} 32... Kf7 {[%clk 0:00:12]} 33. Rf1
{[%clk 0:00:16.3]} 33... Kg7 {[%clk 0:00:08.2]} 34. Rxf6 {[%clk 0:00:16.9]}
34... Rxf6 {[%clk 0:00:09.4]} 35. Qd7 {[%clk 0:00:17.9]} 1-0

[Event "*** Titled Tuesday Blitz"]
[Site "Chess.com"]
[Date "2019.08.06"]
[Round "5"]
[White "DiogenesSinopeus"]
[Black "Evgeny81"]
[Result "0-1"]
[WhiteElo "2397"]
[BlackElo "2537"]
[TimeControl "180+2"]
[EndTime "14:04:08 PDT"]
[Termination "Evgeny81 won by resignation"]

1. d4 {[%clk 0:03:01.9]} 1... d5 {[%clk 0:03:00.9]} 2. c4 {[%clk 0:03:02.7]}
2... c6 {[%clk 0:02:57.8]} 3. Nc3 {[%clk 0:03:03.8]} 3... Nf6 {[%clk 0:02:58.2]}
4. e3 {[%clk 0:03:04.4]} 4... a6 {[%clk 0:02:57.2]} 5. Nf3 {[%clk 0:03:05.4]}
5... b5 {[%clk 0:02:56.3]} 6. b3 {[%clk 0:03:06.3]} 6... Bg4 {[%clk 0:02:57.8]}
7. h3 {[%clk 0:03:07.2]} 7... Bxf3 {[%clk 0:02:57.7]} 8. gxf3 {[%clk 0:03:09.1]}
8... e6 {[%clk 0:02:58]} 9. c5 {[%clk 0:03:10]} 9... Nbd7 {[%clk 0:02:54.9]} 10.
f4 {[%clk 0:03:11.4]} 10... b4 {[%clk 0:02:54.3]} 11. Ne2 {[%clk 0:02:48.8]}
11... Ne4 {[%clk 0:02:55]} 12. Qc2 {[%clk 0:02:18.3]} 12... f5 {[%clk
0:02:46.2]} 13. Bb2 {[%clk 0:02:11.7]} 13... a5 {[%clk 0:02:42.7]} 14. Bg2
{[%clk 0:01:55.2]} 14... Qh4 {[%clk 0:02:36.5]} 15. Ng1 {[%clk 0:01:50.1]} 15...
Be7 {[%clk 0:02:25]} 16. Nf3 {[%clk 0:01:49.3]} 16... Qh5 {[%clk 0:02:22.3]} 17.
O-O-O {[%clk 0:01:45.6]} 17... O-O {[%clk 0:02:20.1]} 18. Rdg1 {[%clk
0:01:34.7]} 18... Ra7 {[%clk 0:02:15.4]} 19. Ne5 {[%clk 0:01:23]} 19... Nxe5
{[%clk 0:02:15.9]} 20. fxe5 {[%clk 0:01:18.7]} 20... a4 {[%clk 0:02:13.3]} 21.
Kb1 {[%clk 0:00:58.9]} 21... axb3 {[%clk 0:02:12.3]} 22. axb3 {[%clk 0:00:59.5]}
22... Rfa8 {[%clk 0:02:08.1]} 23. Bxe4 {[%clk 0:00:48.4]} 23... fxe4 {[%clk
0:02:07.6]} 24. Rg4 {[%clk 0:00:40.5]} 24... Bf8 {[%clk 0:01:56.5]} 25. Qd2
{[%clk 0:00:39.2]} 25... Qf7 {[%clk 0:01:51.2]} 26. Rhg1 {[%clk 0:00:37.6]}
26... Ra5 {[%clk 0:01:47.8]} 27. h4 {[%clk 0:00:33.3]} 27... Qa7 {[%clk
0:01:46.9]} 28. Kc2 {[%clk 0:00:34]} 28... Ra2 {[%clk 0:01:43.5]} 29. Rb1 {[%clk
0:00:32.7]} 29... Qf7 {[%clk 0:01:23.1]} 30. Qe2 {[%clk 0:00:22.1]} 30... R8a3
{[%clk 0:01:18.2]} 31. h5 {[%clk 0:00:19.5]} 31... Qa7 {[%clk 0:01:16.5]} 32. h6
{[%clk 0:00:05]} 32... Rxb3 {[%clk 0:01:15.9]} 33. hxg7 {[%clk 0:00:06]} 33...
Bxc5 {[%clk 0:01:07.4]} 34. dxc5 {[%clk 0:00:03.7]} 34... Qa3 {[%clk 0:00:58.9]}
35. Kc1 {[%clk 0:00:03.5]} 35... Rc3+ {[%clk 0:00:50.7]} 36. Kd1 {[%clk
0:00:04.6]} 36... Qb3+ {[%clk 0:00:50.1]} 37. Ke1 {[%clk 0:00:05.9]} 37... Rc2
{[%clk 0:00:48.4]} 38. Qd1 {[%clk 0:00:03.6]} 38... Raxb2 {[%clk 0:00:45.2]} 39.
Rxb2 {[%clk 0:00:03]} 39... Qxb2 {[%clk 0:00:46]} 40. Kf1 {[%clk 0:00:03]} 40...
Rc1 {[%clk 0:00:46.5]} 0-1

[Event "*** Titled Tuesday Blitz"]
[Site "Chess.com"]
[Date "2019.08.06"]
[Round "5"]
[White "pedro_gines"]
[Black "PchelkinVK"]
[Result "0-1"]
[WhiteElo "2402"]
[BlackElo "2533"]
[TimeControl "180+2"]
[EndTime "14:04:14 PDT"]
[Termination "PchelkinVK won by resignation"]

1. d4 {[%clk 0:03:01.9]} 1... e5 {[%clk 0:02:44.4]} 2. dxe5 {[%clk 0:03:01.1]}
2... d6 {[%clk 0:02:45.5]} 3. Nf3 {[%clk 0:03:00.2]} 3... Nc6 {[%clk 0:02:46.3]}
4. Bg5 {[%clk 0:03:01.3]} 4... Qd7 {[%clk 0:02:46.2]} 5. exd6 {[%clk 0:02:57.4]}
5... Bxd6 {[%clk 0:02:48.1]} 6. e3 {[%clk 0:02:55.9]} 6... f6 {[%clk 0:02:48.6]}
7. Bh4 {[%clk 0:02:56.7]} 7... Qf7 {[%clk 0:02:45.6]} 8. Bd3 {[%clk 0:02:56.3]}
8... Bg4 {[%clk 0:02:45.7]} 9. Bg3 {[%clk 0:02:56.6]} 9... O-O-O {[%clk
0:02:46.3]} 10. Nbd2 {[%clk 0:02:56.5]} 10... Nge7 {[%clk 0:02:43.3]} 11. Qe2
{[%clk 0:02:48]} 11... Kb8 {[%clk 0:02:15.7]} 12. Nc4 {[%clk 0:02:26.8]} 12...
Bxg3 {[%clk 0:01:36.2]} 13. hxg3 {[%clk 0:02:28.7]} 13... Nd5 {[%clk 0:01:37.1]}
14. a3 {[%clk 0:02:26.5]} 14... h5 {[%clk 0:01:27.9]} 15. O-O-O {[%clk
0:02:25.8]} 15... Rd7 {[%clk 0:01:14]} 16. Kb1 {[%clk 0:00:42.8]} 16... Rhd8
{[%clk 0:01:13.1]} 17. e4 {[%clk 0:00:30.8]} 17... Nd4 {[%clk 0:00:50.4]} 18.
Qf1 {[%clk 0:00:26.7]} 18... Ne7 {[%clk 0:00:39.1]} 19. Nxd4 {[%clk 0:00:12.5]}
19... Bxd1 {[%clk 0:00:38.1]} 20. Qxd1 {[%clk 0:00:14.4]} 20... Rxd4 {[%clk
0:00:37.7]} 21. Qxh5 {[%clk 0:00:16.3]} 21... g6 {[%clk 0:00:31.6]} 22. Qh7
{[%clk 0:00:17]} 22... Qe6 {[%clk 0:00:30.7]} 23. Ne3 {[%clk 0:00:17.2]} 23...
a6 {[%clk 0:00:28.9]} 24. f3 {[%clk 0:00:16.6]} 24... Nc6 {[%clk 0:00:22.8]} 25.
Nd5 {[%clk 0:00:15.9]} 25... Qd6 {[%clk 0:00:18.8]} 26. Qf7 {[%clk 0:00:14.3]}
26... Ne5 {[%clk 0:00:18.1]} 27. Qxf6 {[%clk 0:00:14.7]} 27... Rxd5 {[%clk
0:00:18.3]} 28. Qg7 {[%clk 0:00:10.9]} 28... Rd4 {[%clk 0:00:16.8]} 29. Rh7
{[%clk 0:00:11.5]} 29... Nxd3 {[%clk 0:00:16.9]} 30. cxd3 {[%clk 0:00:11.1]}
30... Rxd3 {[%clk 0:00:18]} 31. Qf7 {[%clk 0:00:06.8]} 31... Qb6 {[%clk
0:00:18]} 32. Qc4 {[%clk 0:00:05.9]} 32... Rd2 {[%clk 0:00:18.3]} 33. Qc3 {[%clk
0:00:06.9]} 33... Rxg2 {[%clk 0:00:18.1]} 34. g4 {[%clk 0:00:06.5]} 34... Rdd2
{[%clk 0:00:18.3]} 35. Rh8+ {[%clk 0:00:07.8]} 35... Ka7 {[%clk 0:00:18.5]} 36.
b4 {[%clk 0:00:09.7]} 36... Rd1+ {[%clk 0:00:17.8]} 0-1